[Event "*** SCC Grand Prix: Titled Tuesday Blitz"]
[Site "Chess.com"]
[Date "2020.06.23"]
[Round "8"]
[White "OK97"]
[Black "PavelShkapenko"]
[Result "1/2-1/2"]
[WhiteElo "2827"]
[BlackElo "2670"]
[TimeControl "180+1"]
[EndTime "11:35:34 PDT"]
[Termination "Game drawn by repetition"]

1. d4 {[%clk 0:03:00.9]} 1... Nf6 {[%clk 0:02:59.6]} 2. Nf3 {[%clk 0:03:01]}
2... e6 {[%clk 0:03:00.1]} 3. e3 {[%clk 0:03:00.1]} 3... c5 {[%clk 0:02:59.4]}
4. Bd3 {[%clk 0:02:57.9]} 4... d5 {[%clk 0:02:58.1]} 5. c3 {[%clk 0:02:53.7]}
5... Nc6 {[%clk 0:02:58.5]} 6. O-O {[%clk 0:02:53.6]} 6... Bd6 {[%clk 0:02:58]}
7. dxc5 {[%clk 0:02:49]} 7... Bxc5 {[%clk 0:02:57.5]} 8. Nbd2 {[%clk 0:02:49.6]}
8... O-O {[%clk 0:02:57.3]} 9. b4 {[%clk 0:02:47.5]} 9... Bd6 {[%clk 0:02:56.7]}
10. e4 {[%clk 0:02:44.5]} 10... Qc7 {[%clk 0:02:56]} 11. Bb2 {[%clk 0:02:41.1]}
11... Ne5 {[%clk 0:02:55.2]} 12. Nxe5 {[%clk 0:02:25.9]} 12... Bxe5 {[%clk
0:02:54.1]} 13. h3 {[%clk 0:02:24.7]} 13... Rd8 {[%clk 0:02:49.4]} 14. Qe2
{[%clk 0:02:09.1]} 14... Bf4 {[%clk 0:02:07.2]} 15. exd5 {[%clk 0:02:05.1]}
15... exd5 {[%clk 0:02:00.6]} 16. Nf3 {[%clk 0:01:56.5]} 16... Re8 {[%clk
0:01:57.8]} 17. Qc2 {[%clk 0:01:54.4]} 17... Bd7 {[%clk 0:01:46.7]} 18. Rfe1
{[%clk 0:01:24.1]} 18... Rac8 {[%clk 0:01:24.6]} 19. Rad1 {[%clk 0:01:07.2]}
19... h6 {[%clk 0:01:16.6]} 20. a4 {[%clk 0:00:45.7]} 20... Bd6 {[%clk
0:01:09.5]} 21. Qb3 {[%clk 0:00:42.4]} 21... Rxe1+ {[%clk 0:01:08.2]} 22. Rxe1
{[%clk 0:00:42.4]} 22... Re8 {[%clk 0:01:08.8]} 23. Rxe8+ {[%clk 0:00:39.9]}
23... Bxe8 {[%clk 0:01:09]} 24. c4 {[%clk 0:00:39]} 24... dxc4 {[%clk
0:01:08.3]} 25. Bxc4 {[%clk 0:00:37.7]} 25... Bxa4 {[%clk 0:00:51.6]} 26. Bxf7+
{[%clk 0:00:34.4]} 26... Qxf7 {[%clk 0:00:52.1]} 27. Qxa4 {[%clk 0:00:34.7]}
27... a6 {[%clk 0:00:52.3]} 28. b5 {[%clk 0:00:28.9]} 28... axb5 {[%clk
0:00:46.3]} 29. Qxb5 {[%clk 0:00:29.8]} 29... Qd5 {[%clk 0:00:46.5]} 30. Qe2
{[%clk 0:00:28.7]} 30... Qe4 {[%clk 0:00:42.8]} 31. Qd1 {[%clk 0:00:25.4]} 31...
Qd5 {[%clk 0:00:42.8]} 32. Qe2 {[%clk 0:00:23.5]} 32... Qe4 {[%clk 0:00:42.7]}
33. Qd1 {[%clk 0:00:23.6]} 33... Qd5 {[%clk 0:00:42.9]} 34. Qa1 {[%clk
0:00:24.2]} 34... Be7 {[%clk 0:00:37]} 35. Nd4 {[%clk 0:00:23.7]} 35... Ne4
{[%clk 0:00:30]} 36. Qa8+ {[%clk 0:00:23.6]} 36... Kh7 {[%clk 0:00:29.5]} 37.
Qe8 {[%clk 0:00:22.5]} 37... Bf6 {[%clk 0:00:25.6]} 38. Ne6 {[%clk 0:00:18.3]}
38... Qd1+ {[%clk 0:00:19.9]} 39. Kh2 {[%clk 0:00:18.1]} 39... Qd6+ {[%clk
0:00:20.2]} 40. f4 {[%clk 0:00:16.2]} 40... Bxb2 {[%clk 0:00:19.7]} 41. Nf8+
{[%clk 0:00:16]} 41... Kg8 {[%clk 0:00:20.2]} 42. Ng6+ {[%clk 0:00:10.9]} 42...
Kh7 {[%clk 0:00:20.5]} 43. Nf8+ {[%clk 0:00:09.2]} 43... Kg8 {[%clk 0:00:20.6]}
44. Ne6+ {[%clk 0:00:07.8]} 44... Kh7 {[%clk 0:00:20.6]} 45. Nf8+ {[%clk
0:00:06]} 1/2-1/2

[Event "*** SCC Grand Prix: Titled Tuesday Blitz"]
[Site "Chess.com"]
[Date "2020.06.23"]
[Round "8"]
[White "chigorin28"]
[Black "szachuspl"]
[Result "1-0"]
[WhiteElo "2436"]
[BlackElo "2558"]
[TimeControl "180+1"]
[EndTime "11:35:34 PDT"]
[Termination "chigorin28 won by resignation"]

1. e4 {[%clk 0:03:00.9]} 1... c5 {[%clk 0:02:59]} 2. Nf3 {[%clk 0:03:00.8]} 2...
e6 {[%clk 0:02:59.1]} 3. c3 {[%clk 0:03:01.3]} 3... Nf6 {[%clk 0:02:58.6]} 4. e5
{[%clk 0:03:01.1]} 4... Nd5 {[%clk 0:02:58.8]} 5. d4 {[%clk 0:03:01.8]} 5...
cxd4 {[%clk 0:02:59]} 6. cxd4 {[%clk 0:03:01.9]} 6... d6 {[%clk 0:02:58.9]} 7.
Be2 {[%clk 0:03:01]} 7... Nd7 {[%clk 0:02:58.4]} 8. exd6 {[%clk 0:03:01.2]} 8...
Bxd6 {[%clk 0:02:58.2]} 9. O-O {[%clk 0:03:02.1]} 9... O-O {[%clk 0:02:57.8]}
10. Nc3 {[%clk 0:03:02.6]} 10... Nxc3 {[%clk 0:02:55.4]} 11. bxc3 {[%clk
0:03:02.4]} 11... Qc7 {[%clk 0:02:55.6]} 12. c4 {[%clk 0:02:58.1]} 12... b6
{[%clk 0:02:55.5]} 13. Bb2 {[%clk 0:02:57]} 13... Bb7 {[%clk 0:02:55.3]} 14. Rc1
{[%clk 0:02:57]} 14... Rac8 {[%clk 0:02:53.5]} 15. Qb3 {[%clk 0:02:57]} 15...
Rfd8 {[%clk 0:02:51.6]} 16. Rfd1 {[%clk 0:02:57.3]} 16... Nf6 {[%clk 0:02:45.9]}
17. h3 {[%clk 0:02:37.7]} 17... h6 {[%clk 0:02:44.4]} 18. a4 {[%clk 0:02:27.2]}
18... Bf4 {[%clk 0:02:44.1]} 19. Ra1 {[%clk 0:02:21.9]} 19... Ne4 {[%clk
0:02:33.2]} 20. a5 {[%clk 0:01:49.1]} 20... bxa5 {[%clk 0:02:28.6]} 21. Qa4
{[%clk 0:01:41.9]} 21... Qb6 {[%clk 0:02:19.3]} 22. Qa2 {[%clk 0:01:26.1]} 22...
a4 {[%clk 0:02:05.7]} 23. c5 {[%clk 0:00:48.6]} 23... Qb4 {[%clk 0:01:43.8]} 24.
Rdb1 {[%clk 0:00:40.5]} 24... Bc6 {[%clk 0:01:37]} 25. Bc1 {[%clk 0:00:40.3]}
25... Nc3 {[%clk 0:01:01.2]} 26. Qc2 {[%clk 0:00:40.2]} 26... Nxb1 {[%clk
0:00:51.4]} 27. Rxb1 {[%clk 0:00:40.4]} 27... Qa5 {[%clk 0:00:41.5]} 28. Bxf4
{[%clk 0:00:40.3]} 28... Bxf3 {[%clk 0:00:37.3]} 29. Bxf3 {[%clk 0:00:38]} 29...
Rxd4 {[%clk 0:00:37.1]} 30. Be3 {[%clk 0:00:38.2]} 30... Rdd8 {[%clk 0:00:33.4]}
31. c6 {[%clk 0:00:38.5]} 31... a3 {[%clk 0:00:32.9]} 32. Ra1 {[%clk 0:00:38.4]}
32... Qb4 {[%clk 0:00:23.8]} 33. Rb1 {[%clk 0:00:33.2]} 33... Qa5 {[%clk
0:00:22.6]} 34. Qb3 {[%clk 0:00:31.3]} 34... Kh7 {[%clk 0:00:17.4]} 35. Ra1
{[%clk 0:00:30.6]} 35... Qe5 {[%clk 0:00:13.5]} 36. Qxa3 {[%clk 0:00:27.6]}
36... f5 {[%clk 0:00:12.8]} 37. Qa4 {[%clk 0:00:22.8]} 37... Rc7 {[%clk
0:00:11.1]} 38. Bf4 {[%clk 0:00:22.4]} 38... Qc3 {[%clk 0:00:04.1]} 39. Bxc7
{[%clk 0:00:21.4]} 39... Rd4 {[%clk 0:00:04.8]} 40. Qa5 {[%clk 0:00:20.6]} 40...
Rb4 {[%clk 0:00:04.2]} 41. Qa2 {[%clk 0:00:17.3]} 41... Rb2 {[%clk 0:00:03.9]}
42. Qa5 {[%clk 0:00:15.5]} 42... Qc2 {[%clk 0:00:04]} 43. Qe1 {[%clk 0:00:14.6]}
1-0

[Event "*** SCC Grand Prix: Titled Tuesday Blitz"]
[Site "Chess.com"]
[Date "2020.06.23"]
[Round "8"]
[White "Novoselski"]
[Black "Semetey"]
[Result "0-1"]
[WhiteElo "2318"]
[BlackElo "2541"]
[TimeControl "180+1"]
[EndTime "11:35:34 PDT"]
[Termination "Semetey won on time"]

1. e4 {[%clk 0:03:00.9]} 1... g6 {[%clk 0:03:00.9]} 2. d4 {[%clk 0:02:59.4]}
2... Bg7 {[%clk 0:03:01.8]} 3. Nf3 {[%clk 0:02:59.2]} 3... d6 {[%clk 0:03:01.7]}
4. Bc4 {[%clk 0:02:58.7]} 4... Nf6 {[%clk 0:03:01.6]} 5. Qe2 {[%clk 0:02:58.6]}
5... O-O {[%clk 0:03:01.5]} 6. e5 {[%clk 0:02:57.6]} 6... dxe5 {[%clk
0:03:00.5]} 7. dxe5 {[%clk 0:02:58.5]} 7... Nd5 {[%clk 0:03:00.6]} 8. O-O {[%clk
0:02:57.7]} 8... Bg4 {[%clk 0:03:00.4]} 9. Rd1 {[%clk 0:02:55.4]} 9... c6 {[%clk
0:02:59.9]} 10. Bxd5 {[%clk 0:02:35.1]} 10... cxd5 {[%clk 0:03:00.8]} 11. Bf4
{[%clk 0:02:30.6]} 11... Nc6 {[%clk 0:02:55.2]} 12. c4 {[%clk 0:02:22.4]} 12...
d4 {[%clk 0:02:38.6]} 13. Nbd2 {[%clk 0:02:18.4]} 13... Qb6 {[%clk 0:02:33.2]}
14. b3 {[%clk 0:02:17.1]} 14... Rad8 {[%clk 0:02:20.4]} 15. h3 {[%clk
0:02:17.1]} 15... Bf5 {[%clk 0:02:10.2]} 16. Nf1 {[%clk 0:02:05.5]} 16... d3
{[%clk 0:01:52.4]} 17. Qd2 {[%clk 0:01:55.5]} 17... Be4 {[%clk 0:01:17]} 18.
N1h2 {[%clk 0:01:49.4]} 18... Nd4 {[%clk 0:01:10.6]} 19. Nxd4 {[%clk 0:01:35.6]}
19... Qxd4 {[%clk 0:01:11.5]} 20. Re1 {[%clk 0:01:30.8]} 20... f5 {[%clk
0:01:03.3]} 21. Nf3 {[%clk 0:01:20.4]} 21... Bxf3 {[%clk 0:00:58.7]} 22. gxf3
{[%clk 0:01:21.3]} 22... e6 {[%clk 0:00:58.4]} 23. Rad1 {[%clk 0:01:18.6]} 23...
Rd7 {[%clk 0:00:57.8]} 24. Be3 {[%clk 0:01:15.9]} 24... Qh4 {[%clk 0:00:53.7]}
25. Bxa7 {[%clk 0:01:07.1]} 25... f4 {[%clk 0:00:43.1]} 26. Kh2 {[%clk
0:00:45.3]} 26... Rf5 {[%clk 0:00:43]} 27. Rh1 {[%clk 0:00:36.7]} 27... Rxe5
{[%clk 0:00:29.4]} 28. Rde1 {[%clk 0:00:34]} 28... Rh5 {[%clk 0:00:26.7]} 29.
Kg2 {[%clk 0:00:32.9]} 29... Rg5+ {[%clk 0:00:24.1]} 30. Kf1 {[%clk 0:00:32]}
30... e5 {[%clk 0:00:19.5]} 31. Rd1 {[%clk 0:00:27]} 31... Qh5 {[%clk
0:00:19.2]} 32. Rh2 {[%clk 0:00:12.7]} 32... Qxf3 {[%clk 0:00:19.1]} 33. Re1
{[%clk 0:00:12.3]} 33... e4 {[%clk 0:00:18.7]} 34. Qd1 {[%clk 0:00:11.1]} 34...
d2 {[%clk 0:00:17.5]} 35. Re2 {[%clk 0:00:09.2]} 35... e3 {[%clk 0:00:17.8]} 36.
Bc5 {[%clk 0:00:04.2]} 36... Bd4 {[%clk 0:00:16.9]} 37. Bxd4 {[%clk 0:00:02.7]}
37... Rxd4 {[%clk 0:00:17.8]} 38. c5 {[%clk 0:00:01.5]} 38... Rxc5 {[%clk
0:00:13.7]} 0-1

[Event "*** SCC Grand Prix: Titled Tuesday Blitz"]
[Site "Chess.com"]
[Date "2020.06.23"]
[Round "8"]
[White "Sviridov_Valery"]
[Black "vladislavkovalev"]
[Result "0-1"]
[WhiteElo "2840"]
[BlackElo "2922"]
[TimeControl "180+1"]
[EndTime "11:35:35 PDT"]
[Termination "vladislavkovalev won on time"]

1. Nf3 {[%clk 0:03:00.9]} 1... Nf6 {[%clk 0:03:00.3]} 2. g3 {[%clk 0:03:01.2]}
2... e6 {[%clk 0:03:00.9]} 3. Bg2 {[%clk 0:03:01.6]} 3... d5 {[%clk 0:03:01.6]}
4. O-O {[%clk 0:03:01.6]} 4... Be7 {[%clk 0:03:02.2]} 5. d3 {[%clk 0:03:01.3]}
5... c5 {[%clk 0:02:59.9]} 6. Nbd2 {[%clk 0:03:01]} 6... Nc6 {[%clk 0:03:00.3]}
7. e4 {[%clk 0:03:00.7]} 7... O-O {[%clk 0:02:57.2]} 8. e5 {[%clk 0:02:59.5]}
8... Nd7 {[%clk 0:02:57.5]} 9. Re1 {[%clk 0:02:59.7]} 9... Qc7 {[%clk
0:02:55.5]} 10. Qe2 {[%clk 0:02:59.4]} 10... b5 {[%clk 0:02:49.2]} 11. Nf1
{[%clk 0:02:56.3]} 11... b4 {[%clk 0:02:49.7]} 12. Bf4 {[%clk 0:02:54.5]} 12...
a5 {[%clk 0:02:49.4]} 13. Ne3 {[%clk 0:02:49.8]} 13... Nb6 {[%clk 0:02:23.4]}
14. h4 {[%clk 0:02:46.4]} 14... Nd4 {[%clk 0:02:22.1]} 15. Nxd4 {[%clk
0:02:33.6]} 15... cxd4 {[%clk 0:02:23]} 16. Ng4 {[%clk 0:02:34.5]} 16... Ba6
{[%clk 0:02:04]} 17. h5 {[%clk 0:02:32.8]} 17... Rfc8 {[%clk 0:02:00.9]} 18.
Rec1 {[%clk 0:02:23.8]} 18... Qd8 {[%clk 0:02:01.2]} 19. h6 {[%clk 0:02:22.5]}
19... g6 {[%clk 0:02:01.1]} 20. Nf6+ {[%clk 0:01:48]} 20... Bxf6 {[%clk
0:01:57.9]} 21. exf6 {[%clk 0:01:48.9]} 21... Nd7 {[%clk 0:01:55.8]} 22. Bg5
{[%clk 0:01:47.1]} 22... Qb6 {[%clk 0:01:53.4]} 23. Bf1 {[%clk 0:01:46.4]} 23...
Rc6 {[%clk 0:01:50.6]} 24. a3 {[%clk 0:01:45.6]} 24... b3 {[%clk 0:01:43.9]} 25.
cxb3 {[%clk 0:01:45.6]} 25... Nc5 {[%clk 0:01:40.5]} 26. b4 {[%clk 0:01:32.8]}
26... axb4 {[%clk 0:01:41.4]} 27. axb4 {[%clk 0:01:33.7]} 27... Qxb4 {[%clk
0:01:42.3]} 28. Qe5 {[%clk 0:01:26.8]} 28... Rac8 {[%clk 0:01:40]} 29. Qf4
{[%clk 0:01:23.1]} 29... Nd7 {[%clk 0:01:32.1]} 30. Rxc6 {[%clk 0:01:22.4]}
30... Rxc6 {[%clk 0:01:33]} 31. b3 {[%clk 0:01:09.3]} 31... e5 {[%clk
0:01:02.7]} 32. Qg4 {[%clk 0:01:08.9]} 32... Nf8 {[%clk 0:01:00.1]} 33. Bg2
{[%clk 0:00:56.9]} 33... Qxb3 {[%clk 0:01:00.3]} 34. Re1 {[%clk 0:00:57.1]}
34... Qxd3 {[%clk 0:00:56.4]} 35. Rxe5 {[%clk 0:00:54.8]} 35... Ne6 {[%clk
0:00:50.5]} 36. Rxd5 {[%clk 0:00:46.4]} 36... Rc8 {[%clk 0:00:48]} 37. Rd6
{[%clk 0:00:46.8]} 37... Bc4 {[%clk 0:00:46.1]} 38. Kh2 {[%clk 0:00:29.8]} 38...
Qc2 {[%clk 0:00:44.3]} 39. Rxe6 {[%clk 0:00:10.3]} 39... Bxe6 {[%clk 0:00:45.2]}
40. Qxd4 {[%clk 0:00:10.8]} 40... Qc4 {[%clk 0:00:40.5]} 41. Qxc4 {[%clk
0:00:08.5]} 41... Rxc4 {[%clk 0:00:40.4]} 42. Bb7 {[%clk 0:00:06.7]} 42... Rb4
{[%clk 0:00:38.9]} 43. Ba8 {[%clk 0:00:06.1]} 43... Bc8 {[%clk 0:00:34.2]} 44.
Bc6 {[%clk 0:00:04.6]} 44... Bb7 {[%clk 0:00:34.2]} 45. Bxb7 {[%clk 0:00:04.3]}
45... Rxb7 {[%clk 0:00:34.8]} 46. Kh3 {[%clk 0:00:04.5]} 46... Kf8 {[%clk
0:00:35.3]} 47. Kg4 {[%clk 0:00:03]} 47... Ke8 {[%clk 0:00:35.9]} 0-1

[Event "*** SCC Grand Prix: Titled Tuesday Blitz"]
[Site "Chess.com"]
[Date "2020.06.23"]
[Round "8"]
[White "Vuk2000"]
[Black "Lector118"]
[Result "1-0"]
[WhiteElo "2633"]
[BlackElo "2469"]
[TimeControl "180+1"]
[EndTime "11:35:35 PDT"]
[Termination "Vuk2000 won by resignation"]

1. e4 {[%clk 0:03:00]} 1... c6 {[%clk 0:02:59.8]} 2. d4 {[%clk 0:02:59.6]} 2...
g6 {[%clk 0:03:00.5]} 3. Nd2 {[%clk 0:02:57.4]} 3... d5 {[%clk 0:03:00.7]} 4.
Ngf3 {[%clk 0:02:57.2]} 4... Bg7 {[%clk 0:03:00.4]} 5. c3 {[%clk 0:02:57.5]}
5... Nh6 {[%clk 0:02:49.1]} 6. Bd3 {[%clk 0:02:56.2]} 6... O-O {[%clk
0:02:49.4]} 7. O-O {[%clk 0:02:54.8]} 7... f6 {[%clk 0:02:50]} 8. Re1 {[%clk
0:02:50.8]} 8... Nf7 {[%clk 0:02:50.2]} 9. a4 {[%clk 0:02:47.1]} 9... a5 {[%clk
0:02:48.8]} 10. b4 {[%clk 0:02:39.2]} 10... axb4 {[%clk 0:02:46.6]} 11. cxb4
{[%clk 0:02:40.1]} 11... e5 {[%clk 0:02:25.9]} 12. Bb2 {[%clk 0:02:37.1]} 12...
dxe4 {[%clk 0:02:20.3]} 13. Bxe4 {[%clk 0:01:43.1]} 13... f5 {[%clk 0:02:17.3]}
14. Bc2 {[%clk 0:01:40.6]} 14... e4 {[%clk 0:02:15.8]} 15. Ne5 {[%clk 0:01:41]}
15... Nxe5 {[%clk 0:02:14.6]} 16. dxe5 {[%clk 0:01:41.9]} 16... Be6 {[%clk
0:02:14.9]} 17. Bb3 {[%clk 0:01:37.2]} 17... Qe7 {[%clk 0:02:13.8]} 18. Nc4
{[%clk 0:01:35.7]} 18... Na6 {[%clk 0:02:10.5]} 19. Nd6 {[%clk 0:01:25.2]} 19...
Nxb4 {[%clk 0:01:59.3]} 20. Re3 {[%clk 0:01:09]} 20... c5 {[%clk 0:01:35.4]} 21.
Rc1 {[%clk 0:01:03.7]} 21... b6 {[%clk 0:01:33]} 22. Bc4 {[%clk 0:00:57.6]}
22... Bxc4 {[%clk 0:01:28.1]} 23. Nxc4 {[%clk 0:00:58.5]} 23... Nd3 {[%clk
0:01:28.1]} 24. Rxd3 {[%clk 0:00:46.4]} 24... exd3 {[%clk 0:01:26.2]} 25. Qxd3
{[%clk 0:00:43.4]} 25... Rfd8 {[%clk 0:01:17.8]} 26. Qb3 {[%clk 0:00:41.7]}
26... Qe6 {[%clk 0:01:13]} 27. Qb5 {[%clk 0:00:39.5]} 27... Rab8 {[%clk
0:00:59.8]} 28. f4 {[%clk 0:00:39.5]} 28... Rd5 {[%clk 0:00:49]} 29. a5 {[%clk
0:00:36.8]} 29... Qd7 {[%clk 0:00:35.8]} 30. Qxd7 {[%clk 0:00:30.6]} 30... Rxd7
{[%clk 0:00:36.7]} 31. axb6 {[%clk 0:00:29.3]} 31... Rd3 {[%clk 0:00:29.6]} 32.
Ba3 {[%clk 0:00:28.6]} 32... Bf8 {[%clk 0:00:28.5]} 33. Kf2 {[%clk 0:00:25.6]}
33... Rb3 {[%clk 0:00:25.9]} 34. Rc2 {[%clk 0:00:25.3]} 34... Ra8 {[%clk
0:00:25.4]} 35. Bc1 {[%clk 0:00:21.5]} 35... Ra4 {[%clk 0:00:23.2]} 36. Bd2
{[%clk 0:00:19.1]} 36... Ra1 {[%clk 0:00:21.7]} 37. Rb2 {[%clk 0:00:15.5]} 37...
Rxb2 {[%clk 0:00:17.2]} 38. Nxb2 {[%clk 0:00:16.4]} 38... c4 {[%clk 0:00:16.1]}
39. b7 {[%clk 0:00:14]} 39... Bc5+ {[%clk 0:00:12.5]} 40. Be3 {[%clk 0:00:14.1]}
1-0

[Event "*** SCC Grand Prix: Titled Tuesday Blitz"]
[Site "Chess.com"]
[Date "2020.06.23"]
[Round "8"]
[White "Firouzja2003"]
[Black "Salem-AR"]
[Result "1-0"]
[WhiteElo "3136"]
[BlackElo "2935"]
[TimeControl "180+1"]
[EndTime "11:35:36 PDT"]
[Termination "Firouzja2003 won on time"]

1. d4 {[%clk 0:03:00.9]} 1... Nf6 {[%clk 0:03:00]} 2. c4 {[%clk 0:03:00.7]} 2...
g6 {[%clk 0:03:00.7]} 3. Nf3 {[%clk 0:03:00.6]} 3... Bg7 {[%clk 0:03:01.3]} 4.
Nc3 {[%clk 0:02:59.6]} 4... O-O {[%clk 0:03:01.4]} 5. e4 {[%clk 0:02:59.6]} 5...
d6 {[%clk 0:03:02.2]} 6. Be2 {[%clk 0:02:58.7]} 6... e5 {[%clk 0:03:02.7]} 7. d5
{[%clk 0:02:58.5]} 7... a5 {[%clk 0:03:02.2]} 8. Bg5 {[%clk 0:02:58.8]} 8... h6
{[%clk 0:03:02.4]} 9. Bh4 {[%clk 0:02:58.5]} 9... Na6 {[%clk 0:03:01.2]} 10. Nd2
{[%clk 0:02:57.8]} 10... Qe8 {[%clk 0:02:58.4]} 11. g4 {[%clk 0:02:45.4]} 11...
Nh7 {[%clk 0:02:32.2]} 12. a3 {[%clk 0:02:36.2]} 12... Bd7 {[%clk 0:02:15.1]}
13. h3 {[%clk 0:02:22.8]} 13... a4 {[%clk 0:02:12.9]} 14. Qc2 {[%clk 0:02:15.9]}
14... Nc5 {[%clk 0:02:09]} 15. f3 {[%clk 0:01:55.4]} 15... f5 {[%clk 0:01:57.8]}
16. O-O-O {[%clk 0:01:48.4]} 16... Kh8 {[%clk 0:01:50.9]} 17. Bf2 {[%clk
0:01:37.1]} 17... Qe7 {[%clk 0:01:09.5]} 18. Be3 {[%clk 0:01:28.1]} 18... Qh4
{[%clk 0:00:57.3]} 19. Kb1 {[%clk 0:01:23]} 19... b6 {[%clk 0:00:46.8]} 20. Rdg1
{[%clk 0:01:16.5]} 20... Rf7 {[%clk 0:00:30.6]} 21. Ka2 {[%clk 0:01:01.7]} 21...
f4 {[%clk 0:00:21.9]} 22. Bxc5 {[%clk 0:01:00.9]} 22... bxc5 {[%clk 0:00:22.8]}
23. Nb5 {[%clk 0:00:56.6]} 23... Be8 {[%clk 0:00:20.8]} 24. Nb1 {[%clk
0:00:54.5]} 24... Qf2 {[%clk 0:00:09.3]} 25. h4 {[%clk 0:00:48.1]} 25... Bf6
{[%clk 0:00:09.1]} 26. N1c3 {[%clk 0:00:45.1]} 26... Bd8 {[%clk 0:00:07.9]} 27.
Nd1 {[%clk 0:00:43.2]} 27... Qxg1 {[%clk 0:00:03.3]} 28. Rxg1 {[%clk 0:00:43.1]}
28... Bxh4 {[%clk 0:00:04]} 29. Rh1 {[%clk 0:00:43.2]} 29... Bg5 {[%clk
0:00:04.5]} 30. Ndc3 {[%clk 0:00:42.9]} 30... Kg7 {[%clk 0:00:03.9]} 31. Nxa4
{[%clk 0:00:42.8]} 31... Nf6 {[%clk 0:00:04.4]} 32. Nac3 {[%clk 0:00:41.4]}
32... Rc8 {[%clk 0:00:02.6]} 33. b4 {[%clk 0:00:38.3]} 33... Nd7 {[%clk
0:00:02.8]} 34. Na7 {[%clk 0:00:34.5]} 34... Ra8 {[%clk 0:00:02.8]} 35. Ncb5
{[%clk 0:00:35]} 35... Nb6 {[%clk 0:00:02.8]} 36. Kb3 {[%clk 0:00:34.6]} 36...
cxb4 {[%clk 0:00:03]} 37. axb4 {[%clk 0:00:34.3]} 37... c5 {[%clk 0:00:03.4]}
38. Ra1 {[%clk 0:00:27]} 38... Bxb5 {[%clk 0:00:02.5]} 39. cxb5 {[%clk
0:00:24.3]} 39... c4+ {[%clk 0:00:03]} 40. Bxc4 {[%clk 0:00:24.1]} 40... Rc7
{[%clk 0:00:03.7]} 41. Qf2 {[%clk 0:00:20]} 41... Nxc4 {[%clk 0:00:01.9]} 42. b6
{[%clk 0:00:20]} 1-0

[Event "*** SCC Grand Prix: Titled Tuesday Blitz"]
[Site "Chess.com"]
[Date "2020.06.23"]
[Round "8"]
[White "allvim"]
[Black "Alopekos"]
[Result "0-1"]
[WhiteElo "2207"]
[BlackElo "2433"]
[TimeControl "180+1"]
[EndTime "11:35:36 PDT"]
[Termination "Alopekos won on time"]

1. e4 {[%clk 0:03:00.9]} 1... c5 {[%clk 0:03:00.9]} 2. Nf3 {[%clk 0:02:56.6]}
2... d6 {[%clk 0:02:57.6]} 3. d4 {[%clk 0:02:56.8]} 3... cxd4 {[%clk 0:02:58.5]}
4. Nxd4 {[%clk 0:02:57.6]} 4... Nf6 {[%clk 0:02:55.3]} 5. Nc3 {[%clk 0:02:57.9]}
5... g6 {[%clk 0:02:56.2]} 6. Be2 {[%clk 0:02:57.1]} 6... Bg7 {[%clk 0:02:49.4]}
7. O-O {[%clk 0:02:56.1]} 7... O-O {[%clk 0:02:46.1]} 8. Be3 {[%clk 0:02:56.1]}
8... Nc6 {[%clk 0:02:41.3]} 9. f4 {[%clk 0:02:51.2]} 9... Nxd4 {[%clk
0:02:38.1]} 10. Bxd4 {[%clk 0:02:51.2]} 10... Bd7 {[%clk 0:02:35.8]} 11. Bf3
{[%clk 0:02:50.9]} 11... Bc6 {[%clk 0:02:32]} 12. Qe2 {[%clk 0:01:57]} 12... Nd7
{[%clk 0:02:27.4]} 13. Bxg7 {[%clk 0:01:56]} 13... Kxg7 {[%clk 0:02:24.7]} 14.
Kh1 {[%clk 0:01:55.8]} 14... a6 {[%clk 0:02:22.4]} 15. Rad1 {[%clk 0:01:54.8]}
15... Qb6 {[%clk 0:02:19.2]} 16. b3 {[%clk 0:01:44.9]} 16... Rac8 {[%clk
0:02:15.5]} 17. Nd5 {[%clk 0:01:37.1]} 17... Bxd5 {[%clk 0:02:13]} 18. Rxd5
{[%clk 0:01:34.5]} 18... Rc5 {[%clk 0:02:08.6]} 19. c4 {[%clk 0:01:33.6]} 19...
Rxd5 {[%clk 0:02:05.8]} 20. exd5 {[%clk 0:01:33]} 20... Re8 {[%clk 0:02:03.7]}
21. f5 {[%clk 0:01:31.5]} 21... Ne5 {[%clk 0:01:54.7]} 22. Be4 {[%clk
0:01:15.2]} 22... Qd4 {[%clk 0:01:51.7]} 23. Bb1 {[%clk 0:01:10.6]} 23... g5
{[%clk 0:01:47.8]} 24. Qh5 {[%clk 0:00:48.5]} 24... h6 {[%clk 0:01:45.6]} 25.
Qe2 {[%clk 0:00:32.8]} 25... f6 {[%clk 0:01:40]} 26. Qh5 {[%clk 0:00:27.9]}
26... Rh8 {[%clk 0:01:36.7]} 27. Re1 {[%clk 0:00:26.2]} 27... g4 {[%clk
0:00:59.8]} 28. h3 {[%clk 0:00:18.4]} 28... Qf2 {[%clk 0:00:50]} 29. Rg1 {[%clk
0:00:15.7]} 29... Rc8 {[%clk 0:00:45.4]} 30. hxg4 {[%clk 0:00:14.3]} 30... b5
{[%clk 0:00:43.4]} 31. cxb5 {[%clk 0:00:07.2]} 31... axb5 {[%clk 0:00:41.1]} 32.
Qh3 {[%clk 0:00:07.4]} 32... b4 {[%clk 0:00:37.1]} 33. Be4 {[%clk 0:00:04.1]}
33... Qxa2 {[%clk 0:00:31.1]} 34. Qh5 {[%clk 0:00:04]} 34... Qxb3 {[%clk
0:00:27.2]} 35. Ra1 {[%clk 0:00:03.4]} 35... Qe3 {[%clk 0:00:22.2]} 36. Bf3
{[%clk 0:00:02]} 36... Nxf3 {[%clk 0:00:20.2]} 37. Qg6+ {[%clk 0:00:02.6]} 37...
Kh8 {[%clk 0:00:16.6]} 38. gxf3 {[%clk 0:00:02.4]} 38... Qxf3+ {[%clk
0:00:14.6]} 39. Kh2 {[%clk 0:00:03]} 39... Qf2+ {[%clk 0:00:14.9]} 40. Kh1
{[%clk 0:00:01.7]} 40... Qf3+ {[%clk 0:00:13.9]} 0-1